fUSD/lending_fUSD_20240527
["ID","MTS","AMOUNT","RATE_DAILY","PERIOD"]
[328025938,1716774685732,-500.0,0.00030684,4]
[328025939,1716774685742,-500.0,0.00030684,4]
[328025940,1716774685751,-500.0,0.00030684,4]
[328025941,1716774685761,-500.0,0.00030684,4]
[328025942,1716774685770,-500.0,0.00030684,4]
[328025943,1716774685779,-152.17110216,0.00030684,4]
[328025944,1716774685788,-500.0,0.00030684,4]
[328025945,1716774685798,-1792.24,0.00030684,4]
[328025946,1716774685807,-500.0,0.00030684,4]
[328025947,1716774685817,-500.0,0.00030684,4]
[328025948,1716774685826,-396.88013607,0.00030684,4]
[328025949,1716774685836,-555.55,0.00030684,4]
[328025950,1716774685845,-500.0,0.00030684,4]
[328025951,1716774685855,-500.0,0.00030684,4]
[328025952,1716774685864,-500.0,0.00030684,4]
[328025953,1716774685873,-500.0,0.00030684,4]
[328025954,1716774685883,-554.9,0.00030684,4]
[328025955,1716774685893,-217.9751032,0.00030684,4]
[328025956,1716774685903,-593.69,0.00030684,4]
[328025957,1716774685912,-1375.79,0.00030684,4]
[328025958,1716774685921,-797.4,0.00030684,4]
[328025959,1716774685931,-500.0,0.00030684,4]
[328025960,1716774685941,-500.0,0.00030684,4]
[328025961,1716774685950,-500.0,0.00030684,4]
[328025962,1716774685960,-811.5,0.00030684,4]
[328025963,1716774685969,-500.0,0.00030684,4]
[328025964,1716774685979,-500.0,0.00030684,4]
[328025965,1716774685988,-500.0,0.00030684,4]
[328025966,1716774685998,-752.63,0.00030684,4]
[328025967,1716774686007,-500.0,0.00030684,4]
[328025968,1716774686017,-500.0,0.00030684,4]
[328025969,1716774686026,-508.3,0.00030684,4]
[328025970,1716774686035,-500.0,0.00030684,4]
[328025971,1716774686044,-500.0,0.00030684,4]
[328025972,1716774686053,-500.0,0.00030684,4]
[328025973,1716774686063,-612.14,0.00030684,4]
[328025974,1716774686072,-500.0,0.00030684,4]
[328025975,1716774686081,-1562.49,0.00030684,4]
[328025976,1716774686090,-500.0,0.00030684,4]
[328025977,1716774686099,-500.0,0.00030684,4]
[328025978,1716774686108,-500.0,0.00030684,4]
[328025979,1716774686117,-500.0,0.00030684,4]
[328025980,1716774686127,-1201.55,0.00030684,4]
[328025981,1716774686136,-500.0,0.00030684,4]
[328025982,1716774686146,-545.25,0.00030684,4]
[328025983,1716774686155,-500.0,0.00030684,4]
[328025984,1716774686165,-500.0,0.00030684,4]
[328025985,1716774686175,-753.55,0.00030684,4]
[328025986,1716774686184,-500.0,0.00030684,4]
[328025987,1716774686193,-1011.37,0.00030684,4]
[328025988,1716774686202,-666.41,0.00030684,4]
[328025989,1716774686211,-500.0,0.00030684,4]
[328025990,1716774686224,-1614.98,0.00030684,4]
[328025991,1716774686233,-500.0,0.00030684,4]
[328025992,1716774686244,-801.81,0.00030684,4]
[328025993,1716774686253,-664.62,0.00030684,4]
[328025994,1716774686263,-500.0,0.00030684,4]
[328025995,1716774686273,-584.07,0.00030684,4]
[328025996,1716774686282,-500.0,0.00030684,4]
[328025997,1716774686291,-1253.98,0.00030684,4]
[328025998,1716774686300,-1261.26,0.00030684,4]
[328025999,1716774686311,-576.77,0.00030684,4]
[328026000,1716774686320,-595.80370124,0.00030684,4]
[328026001,1716774686330,-500.0,0.00030684,4]
[328026002,1716774686339,-1690.76,0.00030684,4]
[328026003,1716774686348,-603.3,0.00030684,4]
[328026004,1716774686357,-500.0,0.00030684,4]
[328026005,1716774686366,-500.0,0.00030684,4]
[328026006,1716774686375,-12954.13,0.00030684,4]
[328026007,1716774686384,-500.0,0.00030684,4]
[328026008,1716774686394,-500.0,0.00030684,4]
[328026009,1716774686403,-288.04,0.00030854,2]
[328026010,1716774686415,-228.3424,0.00030858,2]
[328026011,1716774686423,-300.0,0.00030858,2]
[328026012,1716774686433,-176.973604,0.0003094,2]
[328026013,1716774686442,-699.61023438,0.00030956,4]
[328026014,1716774686451,-790.69733882,0.00030957,4]
[328026015,1716774686461,-500.0,0.00030958,4]
[328026016,1716774686470,-548.99,0.00030958,4]
[328026017,1716774686479,-623.54,0.00030958,4]
[328026018,1716774686488,-500.0,0.00030958,4]
[328026019,1716774686497,-500.0,0.00030958,4]
[328026020,1716774686506,-500.0,0.00030958,4]
[328026021,1716774686516,-500.0,0.00030958,4]
[328026022,1716774686525,-500.0,0.00030958,4]
[328026023,1716774686534,-500.0,0.00030958,4]
[328026024,1716774686543,-500.0,0.00030958,4]
[328026025,1716774686552,-500.0,0.00030958,4]
[328026026,1716774686561,-500.0,0.00030958,4]
[328026027,1716774686570,-716.7,0.00030958,4]
[328026028,1716774686579,-500.0,0.00030958,4]
[328026029,1716774686588,-500.0,0.00030958,4]
[328026030,1716774686597,-552.45193234,0.00030958,4]
[328026031,1716774686606,-500.0,0.00030958,4]
[328026032,1716774686615,-500.0,0.00030958,4]
[328026033,1716774686624,-520.81,0.00030958,4]
[328026034,1716774686633,-500.0,0.00030958,4]
[328026035,1716774686643,-170.34310509,0.00030958,4]
[328026036,1716774686652,-567.31,0.00030958,4]
[328026037,1716774686661,-198.59,0.00030958,4]
[328026038,1716774686670,-473.8,0.00030958,4]
[328026039,1716774686679,-500.0,0.00030958,4]
[328026040,1716774686688,-500.0,0.00030958,4]
[328026041,1716774686698,-500.0,0.00030958,4]
[328026042,1716774686706,-500.0,0.00030958,4]
[328026043,1716774686715,-502.71,0.00030958,4]
[328026044,1716774686724,-809.78,0.00030958,4]
[328026045,1716774686734,-920.26,0.00030958,4]
[328026046,1716774686743,-500.0,0.00030958,4]
[328026047,1716774686751,-522.9,0.00030958,4]
[328026048,1716774686761,-559.7,0.00030958,4]
[328026049,1716774686770,-3246.39,0.00030958,4]
[328026050,1716774686779,-850.87,0.00030958,4]
[328026051,1716774686787,-438.38238316,0.00030958,4]
[328026052,1716774686796,-500.0,0.00030958,4]
[328026053,1716774686806,-1876.14,0.00030958,4]
[328026054,1716774686815,-552.27095691,0.00030958,4]
[328026055,1716774686824,-500.0,0.00030958,4]
[328026056,1716774686833,-1150.71,0.00030958,4]
[328026057,1716774686842,-3298.05,0.00030958,4]
[328026058,1716774686851,-665.62,0.00030958,4]
[328026059,1716774686860,-500.0,0.00030958,4]
[328026060,1716774686869,-1737.1,0.00030958,4]
[328026061,1716774686878,-589.83,0.00030958,4]
[328026062,1716774686887,-1057.8,0.00030958,4]
[328026063,1716774686897,-500.0,0.00030958,4]
[328026064,1716774686906,-500.0,0.00030958,4]
[328026065,1716774686915,-538.99,0.00030958,4]
[328026066,1716774686924,-674.64,0.00030958,4]
[328026067,1716774686933,-1379.1,0.00030958,4]
[328026068,1716774686942,-480.85257966,0.00030958,4]
[328026069,1716774686951,-903.17,0.00030958,4]
[328026070,1716774686960,-500.0,0.00030958,4]
[328026071,1716774686968,-500.0,0.00030958,4]
[328026072,1716774686977,-500.0,0.00030958,4]
[328026073,1716774686986,-500.0,0.00030958,4]
[328026074,1716774686996,-365.55841968,0.00030958,4]
[328026075,1716774687005,-500.0,0.00030958,4]
[328026076,1716774687014,-500.0,0.00030958,4]
[328026077,1716774687023,-500.0,0.00030958,4]
[328026078,1716774687032,-535.92655694,0.00030958,4]
[328026079,1716774687041,-1792.24,0.00030958,4]
[328026080,1716774687051,-500.0,0.00030958,4]
[328026081,1716774687060,-500.0,0.00030958,4]
[328026082,1716774687069,-555.55,0.00030958,4]
[328026083,1716774687079,-500.0,0.00030958,4]
[328026084,1716774687088,-500.0,0.00030958,4]
[328026085,1716774687097,-500.0,0.00030958,4]
[328026086,1716774687106,-500.0,0.00030958,4]
[328026087,1716774687115,-554.9,0.00030958,4]
[328026088,1716774687124,-593.69,0.00030958,4]
[328026089,1716774687133,-1375.79,0.00030958,4]
[328026090,1716774687143,-797.4,0.00030958,4]
[328026091,1716774687153,-500.0,0.00030958,4]
[328026092,1716774687162,-500.0,0.00030958,4]
[328026093,1716774687172,-500.0,0.00030958,4]
[328026094,1716774687180,-811.5,0.00030958,4]
[328026095,1716774687189,-500.0,0.00030958,4]
[328026096,1716774687198,-380.86891227,0.00030958,4]
[328026097,1716774687207,-500.0,0.00030958,4]
[328026098,1716774687216,-752.63,0.00030958,4]
[328026099,1716774687225,-500.0,0.00030958,4]
[328026100,1716774687235,-400.53006303,0.00030958,4]
[328026101,1716774687248,-508.3,0.00030958,4]
[328026102,1716774687258,-500.0,0.00030958,4]
[328026103,1716774687267,-500.0,0.00030958,4]
[328026104,1716774687276,-500.0,0.00030958,4]
[328026105,1716774687286,-612.14,0.00030958,4]
[328026106,1716774687295,-500.0,0.00030958,4]
[328026107,1716774687304,-1562.49,0.00030958,4]
[328026108,1716774687314,-500.0,0.00030958,4]
[328026109,1716774687328,-187.90211383,0.00030958,4]
[328026110,1716774687339,-500.0,0.00030958,4]
[328026111,1716774687348,-500.0,0.00030958,4]
[328026112,1716774687358,-1201.55,0.00030958,4]
[328026113,1716774687367,-500.0,0.00030958,4]
[328026114,1716774687377,-545.25,0.00030958,4]
[328026115,1716774687387,-500.0,0.00030958,4]
[328026116,1716774687398,-500.0,0.00030958,4]
[328026117,1716774687407,-753.55,0.00030958,4]
[328026118,1716774687417,-500.0,0.00030958,4]
[328026119,1716774687427,-1011.37,0.00030958,4]
[328026120,1716774687437,-666.41,0.00030958,4]
[328026121,1716774687446,-500.0,0.00030958,4]
[328026122,1716774687455,-1614.98,0.00030958,4]
[328026123,1716774687464,-500.0,0.00030958,4]
[328026124,1716774687473,-801.81,0.00030958,4]
[328026125,1716774687483,-664.62,0.00030958,4]
[328026126,1716774687492,-500.0,0.00030958,4]
[328026127,1716774687502,-584.07,0.00030958,4]
[328026128,1716774687511,-494.12875278,0.00030958,4]
[328026129,1716774687521,-1253.98,0.00030958,4]
[328026130,1716774687530,-1261.26,0.00030958,4]
[328026131,1716774687539,-576.77,0.00030958,4]
[328026132,1716774687549,-251.56439188,0.00030958,4]
[328026133,1716774687559,-1690.76,0.00030958,4]
[328026134,1716774687569,-603.3,0.00030958,4]
[328026135,1716774687578,-500.0,0.00030958,4]
[328026136,1716774687587,-500.0,0.00030958,4]
[328026137,1716774687596,-12954.13,0.00030958,4]
[328026138,1716774687606,-221.46947363,0.00030958,4]
[328026139,1716774687615,-50395.07185857,0.00031,2]
[328026140,1716774687625,-500.0,0.00031,5]
[328026141,1716774687634,-155.0,0.00031,2]
[328026142,1716774687644,-7298.36,0.00031125,5]
[328026143,1716774687654,-193.53,0.00031183,2]
[328026144,1716774687664,-500.0,0.00031232,4]
[328026145,1716774687674,-548.99,0.00031232,4]
[328026146,1716774687683,-623.54,0.00031232,4]
[328026147,1716774687692,-347.83712902,0.00031232,4]
[328026148,1716774687701,-500.0,0.00031232,4]
[328026149,1716774687710,-229.54,0.00031232,4]
[328026150,1716774687720,-500.0,0.00031232,4]
[328026151,1716774687729,-500.0,0.00031232,4]
[328026152,1716774687738,-500.0,0.00031232,4]
[328026153,1716774687747,-380.86886419,0.00031232,4]
[328026154,1716774687756,-500.0,0.00031232,4]
[328026155,1716774687765,-500.0,0.00031232,4]
[328026156,1716774687775,-716.7,0.00031232,4]
[328026157,1716774687784,-500.0,0.00031232,4]
[328026158,1716774687793,-363.27813694,0.00031232,4]
[328026159,1716774687802,-486.88544397,0.00031232,4]
[328026160,1716774687811,-500.0,0.00031232,4]
[328026161,1716774687820,-520.81,0.00031232,4]
[328026162,1716774687829,-500.0,0.00031232,4]
[328026163,1716774687838,-500.0,0.00031232,4]
[328026164,1716774687847,-500.0,0.00031232,4]
[328026165,1716774687857,-293.75205926,0.00031232,4]
[328026166,1716774687866,-500.0,0.00031232,4]
[328026167,1716774687876,-502.71,0.00031232,4]
[328026168,1716774687885,-809.78,0.00031232,4]
[328026169,1716774687895,-920.26,0.00031232,4]
[328026170,1716774687903,-500.0,0.00031232,4]
[328026171,1716774687913,-522.9,0.00031232,4]
[328026172,1716774687923,-559.7,0.00031232,4]
[328026173,1716774687932,-3246.39,0.00031232,4]
[328026174,1716774687942,-850.87,0.00031232,4]
[328026175,1716774687951,-500.0,0.00031232,4]
[328026176,1716774687960,-1876.14,0.00031232,4]
[328026177,1716774687969,-500.0,0.00031232,4]
[328026178,1716774687979,-1150.71,0.00031232,4]
[328026179,1716774687989,-3298.05,0.00031232,4]
[328026180,1716774687998,-665.62,0.00031232,4]
[328026181,1716774688008,-500.0,0.00031232,4]
[328026182,1716774688017,-1737.1,0.00031232,4]
[328026183,1716774688027,-589.83,0.00031232,4]
[328026184,1716774688036,-1057.8,0.00031232,4]
[328026185,1716774688046,-206.02,0.00031232,4]
[328026186,1716774688055,-500.0,0.00031232,4]
[328026187,1716774688064,-538.99,0.00031232,4]
[328026188,1716774688074,-674.64,0.00031232,4]
[328026189,1716774688085,-1379.1,0.00031232,4]
[328026190,1716774688094,-903.17,0.00031232,4]
[328026191,1716774688104,-500.0,0.00031232,4]
[328026192,1716774688113,-500.0,0.00031232,4]
[328026193,1716774688122,-569.05036408,0.00031232,4]
[328026194,1716774688131,-500.0,0.00031232,4]
[328026195,1716774688142,-500.0,0.00031232,4]
[328026196,1716774688151,-500.0,0.00031232,4]
[328026197,1716774688160,-500.0,0.00031232,4]
[328026198,1716774688170,-1792.24,0.00031232,4]
[328026199,1716774688180,-500.0,0.00031232,4]
[328026200,1716774688190,-500.0,0.00031232,4]
[328026201,1716774688200,-555.55,0.00031232,4]
[328026202,1716774688209,-500.0,0.00031232,4]
[328026203,1716774688219,-526.12926369,0.00031232,4]
[328026204,1716774688228,-500.0,0.00031232,4]
[328026205,1716774688243,-500.0,0.00031232,4]
[328026206,1716774688253,-554.9,0.00031232,4]
[328026207,1716774688262,-593.69,0.00031232,4]
[328026208,1716774688271,-1375.79,0.00031232,4]
[328026209,1716774688282,-797.4,0.00031232,4]
[328026210,1716774688291,-500.0,0.00031232,4]
[328026211,1716774688301,-627.23797115,0.00031232,4]
[328026212,1716774688312,-500.0,0.00031232,4]
[328026213,1716774688322,-811.5,0.00031232,4]
[328026214,1716774688332,-500.0,0.00031232,4]
[328026215,1716774688341,-255.96176878,0.00031232,4]
[328026216,1716774688351,-752.63,0.00031232,4]
[328026217,1716774688361,-500.0,0.00031232,4]
[328026218,1716774688370,-508.3,0.00031232,4]
[328026219,1716774688380,-295.58108486,0.00031232,4]
[328026220,1716774688391,-500.0,0.00031232,4]
[328026221,1716774688400,-621.58862158,0.00031232,4]
[328026222,1716774688409,-612.14,0.00031232,4]
[328026223,1716774688418,-500.0,0.00031232,4]
[328026224,1716774688427,-1562.49,0.00031232,4]
[328026225,1716774688437,-500.0,0.00031232,4]
[328026226,1716774688447,-280.47980183,0.00031232,4]
[328026227,1716774688457,-500.0,0.00031232,4]
[328026228,1716774688467,-1201.55,0.00031232,4]
[328026229,1716774688477,-500.0,0.00031232,4]
[328026230,1716774688487,-545.25,0.00031232,4]
[328026231,1716774688497,-500.0,0.00031232,4]
[328026232,1716774688507,-500.0,0.00031232,4]
[328026233,1716774688517,-753.55,0.00031232,4]
[328026234,1716774688527,-500.0,0.00031232,4]
[328026235,1716774688536,-1011.37,0.00031232,4]
[328026236,1716774688546,-666.41,0.00031232,4]
[328026237,1716774688555,-500.0,0.00031232,4]
[328026238,1716774688564,-1614.98,0.00031232,4]
[328026239,1716774688573,-500.0,0.00031232,4]
[328026240,1716774688583,-801.81,0.00031232,4]
[328026241,1716774688592,-664.62,0.00031232,4]
[328026242,1716774688602,-500.0,0.00031232,4]
[328026243,1716774688611,-584.07,0.00031232,4]
[328026244,1716774688620,-1253.98,0.00031232,4]
[328026245,1716774688629,-1261.26,0.00031232,4]
[328026246,1716774688638,-576.77,0.00031232,4]
[328026247,1716774688648,-1690.76,0.00031232,4]
[328026248,1716774688658,-603.3,0.00031232,4]
[328026249,1716774688667,-500.0,0.00031232,4]
[328026250,1716774688677,-500.0,0.00031232,4]
[328026251,1716774688686,-12954.13,0.00031232,4]
[328026252,1716774688696,-22291.00700898,0.00031309,2]
[328026253,1716774688706,-150.0,0.00031505,2]
[328026254,1716774688716,-178.82381637,0.00031506,4]
[328026255,1716774688725,-548.99,0.00031506,4]
[328026256,1716774688734,-623.54,0.00031506,4]
[328026257,1716774688743,-153.84533428,0.00031506,4]
[328026258,1716774688753,-500.0,0.00031506,4]
[328026259,1716774688762,-500.0,0.00031506,4]
[328026260,1716774688771,-500.0,0.00031506,4]
[328026261,1716774688780,-500.0,0.00031506,4]
[328026262,1716774688790,-500.0,0.00031506,4]
[328026263,1716774688799,-716.7,0.00031506,4]
[328026264,1716774688808,-500.0,0.00031506,4]
[328026265,1716774688817,-558.12,0.00031506,4]
[328026266,1716774688826,-520.81,0.00031506,4]
[328026267,1716774688835,-500.0,0.00031506,4]
[328026268,1716774688844,-500.0,0.00031506,4]
[328026269,1716774688854,-500.0,0.00031506,4]
[328026270,1716774688863,-575.97345801,0.00031506,4]
[328026271,1716774688873,-502.71,0.00031506,4]
[328026272,1716774688883,-809.78,0.00031506,4]
[328026273,1716774688894,-920.26,0.00031506,4]
[328026274,1716774688903,-500.0,0.00031506,4]
[328026275,1716774688913,-522.9,0.00031506,4]
[328026276,1716774688922,-559.7,0.00031506,4]
[328026277,1716774688932,-3246.39,0.00031506,4]
[328026278,1716774688941,-850.87,0.00031506,4]
[328026279,1716774688951,-500.0,0.00031506,4]
[328026280,1716774688960,-1876.14,0.00031506,4]
[328026281,1716774688970,-500.0,0.00031506,4]
[328026282,1716774688980,-1150.71,0.00031506,4]
[328026283,1716774688989,-3298.05,0.00031506,4]
[328026284,1716774688999,-665.62,0.00031506,4]
[328026285,1716774689008,-500.0,0.00031506,4]
[328026286,1716774689018,-1737.1,0.00031506,4]
[328026287,1716774689028,-589.83,0.00031506,4]
[328026288,1716774689038,-1057.8,0.00031506,4]
[328026289,1716774689048,-500.0,0.00031506,4]
[328026290,1716774689057,-538.99,0.00031506,4]
[328026291,1716774689067,-674.64,0.00031506,4]
[328026292,1716774689076,-1379.1,0.00031506,4]
[328026293,1716774689087,-903.17,0.00031506,4]
[328026294,1716774689096,-500.0,0.00031506,4]
[328026295,1716774689106,-500.0,0.00031506,4]
[328026296,1716774689116,-500.0,0.00031506,4]
[328026297,1716774689126,-500.0,0.00031506,4]
[328026298,1716774689136,-500.0,0.00031506,4]
[328026299,1716774689147,-500.0,0.00031506,4]
[328026300,1716774689157,-1792.24,0.00031506,4]
[328026301,1716774689167,-500.0,0.00031506,4]
[328026302,1716774689177,-500.0,0.00031506,4]
[328026303,1716774689187,-555.55,0.00031506,4]
[328026304,1716774689196,-153.23276515,0.00031506,4]
[328026305,1716774689206,-500.0,0.00031506,4]
[328026306,1716774689215,-500.0,0.00031506,4]
[328026307,1716774689226,-554.9,0.00031506,4]
[328026308,1716774689235,-593.69,0.00031506,4]
[328026309,1716774689246,-1375.79,0.00031506,4]
[328026310,1716774689256,-797.4,0.00031506,4]
[328026311,1716774689269,-500.0,0.00031506,4]
[328026312,1716774689279,-500.0,0.00031506,4]
[328026313,1716774689289,-811.5,0.00031506,4]
[328026314,1716774689300,-500.0,0.00031506,4]
[328026315,1716774689310,-752.63,0.00031506,4]
[328026316,1716774689320,-500.0,0.00031506,4]
[328026317,1716774689333,-508.3,0.00031506,4]
[328026318,1716774689343,-617.52194506,0.00031506,4]
[328026319,1716774689353,-612.14,0.00031506,4]
[328026320,1716774689363,-500.0,0.00031506,4]
[328026321,1716774689373,-1562.49,0.00031506,4]
[328026322,1716774689383,-500.0,0.00031506,4]
[328026323,1716774689394,-500.0,0.00031506,4]
[328026324,1716774689404,-1201.55,0.00031506,4]
[328026325,1716774689415,-500.0,0.00031506,4]
[328026326,1716774689425,-545.25,0.00031506,4]
[328026327,1716774689435,-429.11646271,0.00031506,4]
[328026328,1716774689444,-500.0,0.00031506,4]
[328026329,1716774689454,-753.55,0.00031506,4]
[328026330,1716774689464,-394.28033416,0.00031506,4]
[328026331,1716774689474,-1011.37,0.00031506,4]
[328026332,1716774689484,-666.41,0.00031506,4]
[328026333,1716774689495,-500.0,0.00031506,4]
[328026334,1716774689505,-1614.98,0.00031506,4]
[328026335,1716774689515,-630.23,0.00031506,4]
[328026336,1716774689524,-801.81,0.00031506,4]
[328026337,1716774689535,-664.62,0.00031506,4]
[328026338,1716774689545,-481.27495226,0.00031506,4]
[328026339,1716774689555,-584.07,0.00031506,4]
[328026340,1716774689565,-1253.98,0.00031506,4]
[328026341,1716774689575,-1261.26,0.00031506,4]
[328026342,1716774689585,-576.77,0.00031506,4]
[328026343,1716774689595,-1690.76,0.00031506,4]
[328026344,1716774689604,-603.3,0.00031506,4]
[328026345,1716774689614,-500.0,0.00031506,4]
[328026346,1716774689624,-500.0,0.00031506,4]
[328026347,1716774689634,-12954.13,0.00031506,4]
[328026348,1716774689645,-1388.68262,0.00031585,2]
[328026349,1716774689655,-3488.0,0.000316,6]
[328026350,1716774689664,-725.31083388,0.00031618,2]
[328026351,1716774689675,-163.96117509,0.0003176,6]
[328026352,1716774689685,-162.7559097,0.0003176,2]
[328026353,1716774689694,-4198.92102952,0.0003176,2]
[328026354,1716774689704,-548.99,0.0003178,4]
[328026355,1716774689714,-623.54,0.0003178,4]
[328026356,1716774689724,-500.0,0.0003178,4]
[328026357,1716774689734,-589.72131319,0.0003178,4]
[328026358,1716774689744,-383.50882882,0.0003178,4]
[328026359,1716774689754,-500.0,0.0003178,4]
[328026360,1716774689764,-500.0,0.0003178,4]
[328026361,1716774689774,-716.7,0.0003178,4]
[328026362,1716774689783,-500.0,0.0003178,4]
[328026363,1716774689792,-520.81,0.0003178,4]
[328026364,1716774689802,-492.9486381,0.0003178,4]
[328026365,1716774689811,-481.86255051,0.0003178,4]
[328026366,1716774689820,-366.14824331,0.0003178,4]
[328026367,1716774689831,-502.71,0.0003178,4]
[328026368,1716774689840,-809.78,0.0003178,4]
[328026369,1716774689850,-920.26,0.0003178,4]
[328026370,1716774689860,-500.0,0.0003178,4]
[328026371,1716774689870,-522.9,0.0003178,4]
[328026372,1716774689879,-559.7,0.0003178,4]
[328026373,1716774689888,-3246.39,0.0003178,4]
[328026374,1716774689899,-850.87,0.0003178,4]
[328026375,1716774689908,-466.02399754,0.0003178,4]
[328026376,1716774689917,-1876.14,0.0003178,4]
[328026377,1716774689926,-500.0,0.0003178,4]
[328026378,1716774689936,-1150.71,0.0003178,4]
[328026379,1716774689945,-3298.05,0.0003178,4]
[328026380,1716774689954,-665.62,0.0003178,4]
[328026381,1716774689963,-500.0,0.0003178,4]
[328026382,1716774689972,-1737.1,0.0003178,4]
[328026383,1716774689982,-589.83,0.0003178,4]
[328026384,1716774689991,-1057.8,0.0003178,4]
[328026385,1716774690001,-500.0,0.0003178,4]
[328026386,1716774690011,-538.99,0.0003178,4]
[328026387,1716774690021,-674.64,0.0003178,4]
[328026388,1716774690031,-1379.1,0.0003178,4]
[328026389,1716774690041,-903.17,0.0003178,4]
[328026390,1716774690051,-500.0,0.0003178,4]
[328026391,1716774690061,-500.0,0.0003178,4]
[328026392,1716774690070,-500.0,0.0003178,4]
[328026393,1716774690080,-227.09250057,0.0003178,4]
[328026394,1716774690090,-500.0,0.0003178,4]
[328026395,1716774690100,-500.0,0.0003178,4]
[328026396,1716774690109,-1792.24,0.0003178,4]
[328026397,1716774690119,-500.0,0.0003178,4]
[328026398,1716774690129,-500.0,0.0003178,4]
[328026399,1716774690139,-555.55,0.0003178,4]
[328026400,1716774690152,-556.62536536,0.0003178,4]
[328026401,1716774690161,-500.0,0.0003178,4]
[328026402,1716774690171,-554.9,0.0003178,4]
[328026403,1716774690181,-593.69,0.0003178,4]
[328026404,1716774690191,-1375.79,0.0003178,4]
[328026405,1716774690201,-797.4,0.0003178,4]
[328026406,1716774690211,-500.0,0.0003178,4]
[328026407,1716774690222,-500.0,0.0003178,4]
[328026408,1716774690233,-811.5,0.0003178,4]
[328026409,1716774690243,-168.31841162,0.0003178,4]
[328026410,1716774690257,-752.63,0.0003178,4]
[328026411,1716774690267,-500.0,0.0003178,4]
[328026412,1716774690277,-508.3,0.0003178,4]
[328026413,1716774690287,-612.14,0.0003178,4]
[328026414,1716774690296,-571.12885518,0.0003178,4]
[328026415,1716774690306,-1562.49,0.0003178,4]
[328026416,1716774690315,-500.0,0.0003178,4]
[328026417,1716774690325,-1201.55,0.0003178,4]
[328026418,1716774690335,-640.24778499,0.0003178,4]
[328026419,1716774690345,-500.0,0.0003178,4]
[328026420,1716774690355,-545.25,0.0003178,4]
[328026421,1716774690364,-500.0,0.0003178,4]
[328026422,1716774690374,-753.55,0.0003178,4]
[328026423,1716774690383,-1011.37,0.0003178,4]
[328026424,1716774690394,-666.41,0.0003178,4]
[328026425,1716774690403,-244.6937174,0.0003178,4]
[328026426,1716774690412,-1614.98,0.0003178,4]
[328026427,1716774690422,-801.81,0.0003178,4]
[328026428,1716774690432,-664.62,0.0003178,4]
[328026429,1716774690442,-584.07,0.0003178,4]
[328026430,1716774690452,-1253.98,0.0003178,4]
[328026431,1716774690463,-1261.26,0.0003178,4]
[328026432,1716774690473,-576.77,0.0003178,4]
[328026433,1716774690483,-1690.76,0.0003178,4]
[328026434,1716774690493,-603.3,0.0003178,4]
[328026435,1716774690503,-463.25591587,0.0003178,4]
[328026436,1716774690513,-500.0,0.0003178,4]
[328026437,1716774690522,-12954.13,0.0003178,4]